bitfinex/quotes_SOLUSD_20241125
["timestamp","ask_amount","ask_price","bid_price","bid_amount"]
[1732502422337,8.69754991,250.26,250.23,23.776884]
[1732502422532,8.69754991,250.24,250.22,6.14840227]
[1732502422769,8.69754991,250.24,250.19,6.14840227]
[1732502423637,8.69754991,250.24,250.18,6.14840227]
[1732502424465,8.69754991,250.24,250.19,23.776884]
[1732502424936,8.69754991,250.26,250.19,29.92528627]
[1732502425341,8.69754991,250.24,250.19,23.776884]
[1732502426476,8.69754991,250.26,250.19,23.776884]
[1732502426637,8.69754991,250.26,250.19,29.92528627]
[1732502426838,8.69754991,250.26,250.19,23.776884]
[1732502427036,8.69754991,250.26,250.19,29.92528627]
[1732502427465,8.69754991,250.26,250.19,23.776884]
[1732502428870,8.69754991,250.26,250.19,29.92528627]
[1732502430757,22.2055,250.37,250.19,41.02093618]
[1732502430940,8.69754991,250.28,250.22,23.776884]
[1732502431142,8.69754991,250.3,250.22,23.776884]
[1732502431765,8.69754991,250.32,250.24,23.776884]
[1732502434575,8.69754991,250.34,250.27,8.69754991]
[1732502434772,8.69754991,250.34,250.28,23.776884]
[1732502435759,8.69754991,250.36,250.28,23.776884]
[1732502437065,8.69754991,250.38,250.31,8.69754991]
[1732502437279,8.69754991,250.42,250.34,23.776884]
[1732502437467,2.99052629,250.41,250.34,23.776884]
[1732502438360,8.69754991,250.4,250.34,23.776884]
[1732502440276,8.69754991,250.4,250.33,8.69754991]
[1732502440277,8.69754991,250.42,250.39,23.776884]
[1732502440460,8.69754991,250.42,250.39,29.92528627]
[1732502440950,8.69754991,250.44,250.41,23.776884]
[1732502441157,8.69754991,250.44,250.41,29.92528627]
[1732502445368,21.5115,250.49,250.41,29.92528627]
[1732502445369,8.69754991,250.42,250.41,29.92528627]
[1732502445686,8.69754991,250.42,250.41,23.776884]
[1732502446279,5.56232545,250.43,250.41,23.776884]
[1732502446867,5.56232545,250.43,250.41,29.92528627]
[1732502448782,5.56232545,250.43,250.41,23.776884]
[1732502450070,20.0,250.46,250.41,23.776884]
[1732502450271,21.5115,250.49,250.41,23.776884]
[1732502450272,5.56232545,250.42,250.41,23.776884]
[1732502450477,20.0,250.46,250.41,23.776884]
[1732502450786,5.56232545,250.43,250.41,23.776884]
[1732502451476,21.5115,250.49,250.41,23.776884]
[1732502451804,5.56232545,250.46,250.41,29.92528627]
[1732502451984,21.5115,250.49,250.41,29.92528627]
[1732502452178,5.56232545,250.46,250.43,23.776884]
[1732502452380,5.56232545,250.46,250.41,29.92528627]
[1732502454392,5.56232545,250.44,250.41,29.92528627]
[1732502461983,5.56232545,250.44,250.42,6.14840227]
[1732502462190,5.56232545,250.44,250.43,23.776884]
[1732502463694,6.5421,250.56,250.43,23.776884]
[1732502463874,5.56232545,250.52,250.45,23.776884]
[1732502464080,5.56232545,250.52,250.47,23.776884]
[1732502464376,5.56232545,250.52,250.47,29.92528627]
[1732502464590,5.56232545,250.52,250.48,6.14840227]
[1732502464980,5.56232545,250.52,250.49,23.776884]
[1732502465164,5.56232545,250.52,250.49,29.92528627]
[1732502465368,5.56232545,250.52,250.49,23.776884]
[1732502467796,15.5367,250.57,250.5,6.14840227]
[1732502467999,5.56232545,250.56,250.52,23.776884]
[1732502468173,20.0,250.59,250.52,29.92528627]
[1732502468383,5.56232545,250.57,250.52,29.92528627]
[1732502468880,15.0232,250.63,250.52,29.92528627]
[1732502468881,15.0232,250.63,250.53,5.56232545]
[1732502469080,6.1444,250.68,250.56,23.776884]
[1732502469401,5.56232545,250.63,250.58,23.776884]
[1732502469578,5.56232545,250.63,250.58,29.92528627]
[1732502470381,5.56232545,250.63,250.56,23.776884]
[1732502470900,5.56232545,250.68,250.61,5.56232545]
[1732502471089,5.56232545,250.7,250.62,23.776884]
[1732502471270,5.56232545,250.68,250.66,6.16216285]
[1732502471475,5.56232545,250.67,250.66,29.93904685]
[1732502471894,5.56232545,250.67,250.66,29.9386785]
[1732502472197,5.56232545,250.67,250.66,23.776884]
[1732502472395,8.676847,250.67,250.66,23.776884]
[1732502472578,8.676847,250.67,250.66,29.93836696]
[1732502472899,8.676847,250.67,250.66,29.9385413]
[1732502473089,8.676847,250.67,250.66,23.776884]
[1732502473598,8.676847,250.69,250.67,23.776884]
[1732502473798,8.676847,250.69,250.68,29.9385413]
[1732502475582,8.676847,250.69,250.67,36.1012097]
[1732502476491,8.676847,250.69,250.68,29.93691515]
[1732502477800,21.748,250.74,250.68,29.93691515]
[1732502478107,20.0,250.71,250.69,23.776884]
[1732502479712,8.676847,250.72,250.69,29.93691515]
[1732502480009,8.676847,250.72,250.71,23.776884]
[1732502483903,8.676847,250.72,250.7,6.16003115]
[1732502484095,8.676847,250.72,250.69,6.16003115]
[1732502484407,8.676847,250.7,250.69,6.16003115]
[1732502484910,8.676847,250.7,250.68,6.16003115]
[1732502485083,8.676847,250.69,250.68,23.776884]
[1732502487695,8.676847,250.71,250.68,23.776884]
[1732502487896,8.676847,250.71,250.7,29.93973443]
[1732502488112,16.2686,250.76,250.71,23.776884]
[1732502488113,8.676847,250.74,250.71,23.776884]
[1732502488296,8.676847,250.74,250.71,29.93882887]
[1732502491718,8.676847,250.76,250.72,6.16194487]
[1732502492020,8.676847,250.76,250.73,23.776884]
[1732502492797,15.0587,250.82,250.73,29.93722965]
[1732502492798,8.676847,250.74,250.73,29.93722965]
[1732502493106,8.676847,250.74,250.73,23.776884]
[1732502493305,20.0,250.79,250.73,23.776884]
[1732502493513,8.676847,250.74,250.73,29.93722965]
[1732502493820,8.676847,250.74,250.72,29.93722965]
[1732502493998,8.676847,250.74,250.72,23.776884]
[1732502495722,8.676847,250.74,250.71,23.776884]
[1732502495925,8.676847,250.72,250.71,23.776884]
[1732502496523,8.676847,250.72,250.7,6.16034565]
[1732502496712,20.0,250.7,250.68,6.16034565]
[1732502496898,8.676847,250.69,250.68,6.16034565]
[1732502497798,8.676847,250.69,250.68,23.776884]
[1732502498714,8.676847,250.69,250.68,29.93821939]
[1732502499109,8.676847,250.69,250.68,23.776884]
[1732502499305,8.676847,250.71,250.69,23.776884]
[1732502499635,8.676847,250.71,250.69,29.93769487]
[1732502500417,8.676847,250.71,250.69,23.776884]
[1732502501096,8.676847,250.71,250.69,29.93769487]
[1732502503222,8.676847,250.71,250.69,23.776884]
[1732502503421,15.0587,250.82,250.69,23.776884]
[1732502503630,8.676847,250.75,250.72,6.16081087]
[1732502503824,8.676847,250.75,250.73,29.93769487]
[1732502504018,8.676847,250.75,250.73,23.776884]
[1732502504626,8.676847,250.75,250.73,29.93769487]
[1732502506635,8.676847,250.74,250.73,23.776884]
[1732502506809,8.676847,250.74,250.73,29.93769487]
[1732502507004,20.0,250.79,250.73,29.93769487]
[1732502507207,8.676847,250.77,250.73,29.93769487]
[1732502507732,8.676847,250.79,250.75,23.776884]
[1732502508032,8.676847,250.79,250.77,23.776884]
[1732502508334,8.676847,250.79,250.78,23.776884]
[1732502512405,8.676847,250.79,250.77,23.776884]
[1732502512719,8.676847,250.78,250.77,23.776884]
[1732502516541,8.676847,250.78,250.75,23.776884]
[1732502516710,8.676847,250.76,250.75,23.776884]
[1732502520436,5.5502097,250.76,250.75,23.776884]
[1732502520947,5.5502097,250.77,250.75,23.776884]
[1732502523438,5.5502097,250.77,250.75,29.93769487]
[1732502523627,5.5502097,250.77,250.75,23.776884]
[1732502524935,20.0,250.75,250.74,23.776884]
[1732502525240,25.5502097,250.75,250.74,29.93769487]
[1732502525638,25.5502097,250.75,250.74,23.776884]
[1732502526338,25.5502097,250.75,250.74,29.93769487]
[1732502527921,20.0,250.75,250.74,23.776884]
[1732502528114,15.9685,250.88,250.74,23.776884]
[1732502528311,15.9685,250.88,250.76,23.776884]
[1732502528722,5.5502097,250.83,250.76,29.93122296]
[1732502529139,5.5502097,250.81,250.76,29.93122296]
[1732502529637,5.5502097,250.81,250.78,29.93122296]
[1732502530135,20.0,250.85,250.78,29.93122296]
[1732502530442,8.66585078,250.8,250.78,29.93122296]
[1732502530616,8.66585078,250.8,250.79,6.15433896]
[1732502530828,8.66585078,250.8,250.79,29.92802522]
[1732502531233,8.66585078,250.8,250.79,23.776884]
[1732502531426,8.66585078,250.82,250.8,23.776884]
[1732502531723,8.66585078,250.82,250.8,29.92741211]
[1732502532240,8.66585078,250.82,250.81,29.92741211]
[1732502535228,8.66585078,250.82,250.8,36.1012097]
[1732502536828,8.66585078,250.84,250.8,36.1012097]
[1732502537148,8.66585078,250.84,250.83,23.776884]
[1732502537336,8.66585078,250.86,250.83,23.776884]
[1732502537529,8.66585078,250.86,250.83,29.92894174]
[1732502537730,8.66585078,250.86,250.85,23.776884]
[1732502538126,8.66585078,250.86,250.85,29.92894174]
[1732502538721,8.66585078,250.86,250.85,23.776884]
[1732502540128,8.66585078,250.89,250.85,36.1012097]
[1732502540430,6.5502,250.95,250.88,29.92472579]
[1732502540638,8.66585078,250.92,250.9,23.776884]
[1732502540836,8.66585078,250.94,250.9,29.92472579]
[1732502541033,8.66585078,250.95,250.92,23.776884]
[1732502541333,8.66585078,250.95,250.92,29.92472579]
[1732502541833,8.66585078,250.95,250.93,6.14784179]
[1732502542036,8.66585078,250.95,250.94,23.776884]
[1732502543747,8.66585078,250.95,250.94,29.92472579]
[1732502546556,8.66585078,250.95,250.94,23.776884]
[1732502547044,8.66585078,250.95,250.94,29.92472579]
[1732502547247,8.66585078,250.95,250.94,28.92472579]
[1732502550448,5.54080309,250.95,250.94,28.92472579]
[1732502551034,5.54080309,250.95,250.94,22.776884]
[1732502551945,5.54080309,250.95,250.94,28.92472579]
[1732502552531,5.54080309,250.95,250.94,35.1012097]
[1732502553856,5.54080309,250.95,250.94,22.776884]
[1732502554370,5.54080309,250.95,250.94,35.05986057]
[1732502556056,5.54080309,250.95,250.94,34.65585281]
[1732502556878,5.54080309,250.95,250.94,22.37287624]
[1732502557161,5.54080309,250.95,250.94,34.65585281]
[1732502557955,6.3116,251.01,250.94,34.65585281]
[1732502558150,6.3116,251.01,250.97,23.776884]
[1732502558452,6.3116,251.01,250.97,29.91938076]
[1732502558859,20.0,250.99,250.98,29.91938076]
[1732502560459,25.54080309,250.99,250.98,29.91938076]
[1732502560665,25.54080309,250.99,250.98,23.776884]
[1732502561157,25.54080309,250.99,250.98,29.91938076]
[1732502563160,6.3116,251.01,250.98,29.91938076]
[1732502563372,15.7879,251.03,250.99,23.776884]
[1732502563541,20.0,251.0,250.99,23.776884]
[1732502563865,25.54080309,251.0,250.99,23.776884]
[1732502567070,25.54080309,251.0,250.98,23.776884]
[1732502568470,25.54080309,251.0,250.97,23.776884]
[1732502568655,5.54080309,250.98,250.97,23.776884]
[1732502569763,5.54080309,250.98,250.97,29.91938076]
[1732502570166,5.54080309,250.98,250.97,23.776884]
[1732502570359,5.54080309,250.98,250.97,29.91938076]
[1732502571264,5.54080309,250.98,250.97,23.776884]
[1732502572368,5.54080309,250.98,250.94,6.14249676]
[1732502572555,5.54080309,250.95,250.94,6.14249676]
[1732502573774,5.54080309,250.95,250.93,6.14249676]
[1732502573950,5.54080309,250.94,250.93,29.91938076]
[1732502576565,5.54080309,250.94,250.93,23.776884]
[1732502577673,5.54080309,250.94,250.92,23.776884]
[1732502578354,5.54080309,250.94,250.92,29.91938076]
[1732502580376,20.0,250.92,250.91,6.14249676]
[1732502580677,20.0,250.89,250.88,6.14249676]
[1732502580860,25.54080309,250.89,250.88,6.14249676]
[1732502581062,25.54080309,250.89,250.87,6.14249676]
[1732502581253,5.54080309,250.88,250.86,12.28297657]
[1732502581459,20.0,250.91,250.86,12.28297657]
[1732502581668,20.0,250.91,250.86,36.05986057]
[1732502581669,5.54080309,250.87,250.86,36.05986057]
[1732502582878,5.54080309,250.87,250.86,23.776884]
[1732502585376,5.54080309,250.87,250.86,36.08022202]
[1732502587685,5.54080309,250.87,250.86,23.776884]
[1732502588179,5.54080309,250.87,250.86,36.08022202]
[1732502588378,5.54080309,250.87,250.86,23.776884]
[1732502590568,5.54080309,250.87,250.86,29.93078053]
[1732502591486,5.54080309,250.87,250.86,23.776884]
[1732502592389,5.54080309,250.88,250.87,23.776884]
[1732502592773,5.54080309,250.88,250.86,23.776884]
[1732502593193,5.54080309,250.88,250.87,6.15389653]
[1732502593699,5.54080309,250.88,250.87,29.93078053]
[1732502597478,5.54080309,250.88,250.87,23.776884]
[1732502597881,5.54080309,250.88,250.86,23.776884]
[1732502606303,5.54080309,250.88,250.76,23.776884]
[1732502606493,5.54080309,250.79,250.76,23.776884]
[1732502607395,5.54080309,250.81,250.76,23.776884]
[1732502609488,5.54080309,250.81,250.73,23.776884]
[1732502609887,5.54080309,250.79,250.73,23.776884]
[1732502610409,5.54080309,250.75,250.7,6.15389653]
[1732502610581,5.54080309,250.73,250.69,15.6898]
[1732502610777,5.54080309,250.73,250.68,6.15389653]
[1732502610983,5.54080309,250.73,250.67,2.3934]
[1732502610984,5.54080309,250.73,250.67,8.54729653]
[1732502611196,5.54080309,250.73,250.67,2.3934]
[1732502611904,16.1504,250.85,250.71,5.54080309]
[1732502612088,5.54080309,250.8,250.71,5.54080309]
[1732502612901,5.54080309,250.78,250.72,23.776884]
[1732502613088,5.54080309,250.78,250.71,23.776884]
[1732502613292,5.54080309,250.76,250.71,23.776884]
[1732502613804,5.54080309,250.78,250.71,23.776884]
[1732502614022,5.54080309,250.78,250.7,26.170084]
[1732502614698,5.54080309,250.8,250.72,23.776884]
[1732502615601,5.54080309,250.76,250.72,23.776884]
[1732502615810,20.0,250.82,250.68,5.54080309]
[1732502615995,5.54080309,250.77,250.68,5.54080309]
[1732502616703,5.54080309,250.77,250.69,2.3933]
[1732502617201,5.54080309,250.77,250.7,23.776884]
[1732502617607,5.54080309,250.77,250.69,23.776884]
[1732502618807,20.0,250.82,250.77,23.776884]
[1732502618997,5.54080309,250.79,250.78,48.42553541]
[1732502620806,5.54080309,250.79,250.78,23.776884]
[1732502620992,5.54080309,250.81,250.76,23.776884]
[1732502621302,5.54080309,250.81,250.8,36.08205084]
[1732502621509,5.54080309,250.81,250.8,23.776884]
[1732502622914,16.1504,250.85,250.8,23.776884]
[1732502623091,5.54080309,250.81,250.8,23.776884]
[1732502625312,5.54080309,250.81,250.8,29.91714907]
[1732502628011,5.54080309,250.81,250.8,23.776884]
[1732502629091,5.54080309,250.81,250.8,29.91714907]
[1732502630111,5.54080309,250.81,250.8,23.776884]
[1732502630316,5.54080309,250.81,250.8,29.91714907]
[1732502630497,5.54080309,250.81,250.8,23.776884]
[1732502630703,5.54080309,250.81,250.8,29.91714907]
[1732502630912,5.54080309,250.81,250.79,6.14026507]
[1732502631217,20.0,250.79,250.77,6.14026507]
[1732502631522,5.54080309,250.78,250.77,6.14026507]
[1732502631895,5.54080309,250.78,250.76,6.14026507]
[1732502632096,5.54080309,250.78,250.77,23.776884]
[1732502635211,5.54080309,250.78,250.76,23.776884]
[1732502637697,5.54080309,250.78,250.76,29.91714907]
[1732502639809,5.54080309,250.8,250.76,29.91714907]
[1732502640197,5.54080309,250.78,250.76,29.91714907]
[1732502640896,5.54080309,250.78,250.76,36.05741415]
[1732502642932,16.1504,250.85,250.76,36.05741415]
[1732502643108,5.54080309,250.8,250.76,36.05741415]
[1732502643830,16.1504,250.85,250.76,36.05741415]
[1732502644138,5.54080309,250.82,250.76,36.05741415]
[1732502644425,5.54080309,250.84,250.76,38.45001415]
[1732502644629,5.54080309,250.84,250.76,43.99081724]
[1732502645710,15.6682,250.92,250.81,23.776884]
[1732502645911,5.54080309,250.89,250.81,29.31768709]
[1732502647421,5.54080309,250.87,250.81,23.776884]
[1732502648027,5.54080309,250.83,250.77,23.776884]
[1732502650315,5.54080309,250.83,250.77,26.169484]
[1732502650515,5.54080309,250.83,250.81,6.12928933]
[1732502650705,5.54080309,250.85,250.82,29.90617333]
[1732502651421,5.54080309,250.85,250.82,23.776884]
[1732502651814,5.54080309,250.83,250.82,23.776884]
[1732502652424,5.54080309,250.83,250.81,23.776884]
[1732502652824,5.54080309,250.83,250.81,29.90617333]
[1732502657635,5.54080309,250.85,250.81,29.90617333]
[1732502658012,5.54080309,250.85,250.82,6.12928933]
[1732502658210,5.54080309,250.85,250.83,23.776884]
[1732502660115,5.54080309,250.85,250.82,23.776884]
[1732502660316,5.54080309,250.83,250.82,23.776884]
[1732502660943,5.54080309,250.83,250.8,29.90617333]
[1732502661119,5.54080309,250.83,250.8,23.776884]
[1732502661445,37.93141236,250.9,250.8,23.776884]
[1732502661446,5.54080309,250.81,250.8,23.776884]
[1732502663031,5.54080309,250.81,250.79,6.12928933]
[1732502663222,5.54080309,250.81,250.75,6.12928933]
[1732502663436,5.54080309,250.76,250.74,12.28053015]
[1732502663930,5.54080309,250.76,250.75,6.13957027]
[1732502664449,5.54080309,250.76,250.75,29.91645427]
[1732502664615,5.54080309,250.76,250.75,6.13957027]
[1732502666814,5.54080309,250.76,250.75,23.776884]
[1732502667320,5.54080309,250.76,250.74,23.776884]
[1732502668613,5.54080309,250.76,250.73,29.91645427]
[1732502668824,5.54080309,250.74,250.73,23.776884]
[1732502669473,5.54080309,250.74,250.73,29.91645427]
[1732502669839,15.7304,250.82,250.73,29.91645427]
[1732502670045,5.54080309,250.79,250.76,23.776884]
[1732502670542,5.54080309,250.79,250.76,29.90857951]
[1732502671323,15.7304,250.82,250.76,29.90857951]
[1732502671531,15.7304,250.82,250.78,23.776884]
[1732502671532,5.54080309,250.8,250.78,23.776884]
[1732502674032,15.7304,250.82,250.78,23.776884]
[1732502674362,5.54080309,250.79,250.78,23.776884]
[1732502674852,5.54080309,250.79,250.77,23.776884]
[1732502675051,5.54080309,250.79,250.76,6.13169551]
[1732502675228,5.54080309,250.77,250.76,6.13169551]
[1732502675425,5.54080309,250.77,250.75,6.13169551]
[1732502676553,5.54080309,250.77,250.76,23.776884]
[1732502679136,5.54080309,250.79,250.76,29.90857951]
[1732502679545,15.7304,250.82,250.76,29.90857951]
[1732502679546,5.54080309,250.81,250.76,29.90857951]
[1732502680157,5.54080309,250.79,250.76,29.90857951]
[1732502683162,5.54080309,250.77,250.76,29.90857951]
[1732502683837,5.54080309,250.77,250.76,23.776884]
[1732502684353,5.54080309,250.77,250.75,23.776884]
[1732502684554,5.54080309,250.77,250.74,6.13169551]
[1732502684745,5.54080309,250.75,250.72,6.13169551]
[1732502685058,5.54080309,250.73,250.72,6.13169551]
[1732502686147,5.54080309,250.73,250.72,23.776884]
[1732502687061,5.54080309,250.73,250.71,6.13169551]
[1732502687355,5.54080309,250.73,250.69,12.26339102]
[1732502687356,5.54080309,250.73,250.69,6.13169551]
[1732502687540,5.54080309,250.7,250.68,6.13169551]
[1732502687742,5.54080309,250.69,250.68,6.13169551]
[1732502688559,5.54080309,250.69,250.68,29.90857951]
[1732502689557,5.54080309,250.69,250.68,23.776884]
[1732502690760,5.54080309,250.69,250.62,6.13169551]
[1732502690948,16.1194,250.73,250.62,6.13169551]
[1732502690949,5.54080309,250.64,250.62,6.13169551]
[1732502691261,5.54080309,250.64,250.61,6.13169551]
[1732502691463,5.54080309,250.62,250.59,6.13169551]
[1732502691766,5.54080309,250.62,250.56,6.13169551]
[1732502692366,5.54080309,250.62,250.55,8.52639551]
[1732502692535,5.54080309,250.62,250.55,2.3947]
[1732502692736,5.54080309,250.62,250.56,23.776884]
[1732502693769,5.54080309,250.62,250.54,23.776884]
[1732502694065,5.54080309,250.6,250.54,23.776884]
[1732502695042,5.54080309,250.6,250.54,26.171684]
[1732502696268,6.4507,250.68,250.54,26.171684]
[1732502696269,5.54080309,250.62,250.54,26.171684]
[1732502700554,5.54080309,250.6,250.54,26.171684]
[1732502700747,5.54080309,250.56,250.48,5.54080309]
[1732502701268,22.16321236,250.64,250.47,2.3954]
[1732502701269,5.54080309,250.52,250.47,2.3954]
[1732502701839,5.54080309,250.52,250.45,2.3956]
[1732502702069,5.54080309,250.54,250.45,2.3956]
[1732502702448,5.54080309,250.56,250.48,5.54080309]
[1732502702651,5.54080309,250.58,250.48,6.13941437]
[1732502702976,5.54080309,250.58,250.49,2.3953]
[1732502703148,6.5317,250.59,250.5,29.91629008]
[1732502703473,12.07250309,250.59,250.52,5.54080309]
[1732502703643,12.07250309,250.59,250.53,23.776884]
[1732502703644,6.5317,250.59,250.53,23.776884]
[1732502703848,12.07250309,250.59,250.53,23.776884]
[1732502704050,5.54080309,250.59,250.53,23.776884]
[1732502704569,21.2787,250.65,250.53,23.776884]
[1732502704570,21.2787,250.65,250.56,23.776884]
[1732502704772,5.54080309,250.64,250.56,26.171484]
[1732502706251,22.6721,250.71,250.58,23.776884]
[1732502706464,22.6721,250.71,250.61,23.776884]
[1732502706465,5.54080309,250.68,250.61,23.776884]
[1732502706667,22.6721,250.71,250.61,23.776884]
[1732502706668,5.54080309,250.66,250.61,23.776884]
[1732502706990,5.54080309,250.66,250.59,23.776884]
[1732502707474,5.54080309,250.66,250.61,23.776884]
[1732502707851,5.54080309,250.66,250.6,23.776884]
[1732502708058,5.54080309,250.66,250.57,23.776884]
[1732502708561,5.54080309,250.66,250.59,23.776884]
[1732502709047,5.54080309,250.66,250.57,23.776884]
[1732502709764,5.54080309,250.64,250.57,26.171384]
[1732502710451,5.54080309,250.64,250.57,20.0]
[1732502710651,5.54080309,250.62,250.57,20.0]
[1732502710847,5.54080309,250.64,250.57,20.0]
[1732502711974,5.54080309,250.64,250.58,23.776884]
[1732502712471,5.54080309,250.62,250.58,23.776884]
[1732502713668,5.54080309,250.64,250.58,23.776884]
[1732502713953,5.54080309,250.64,250.58,26.171284]
[1732502714366,22.6721,250.71,250.58,26.171284]
[1732502714367,22.6721,250.71,250.58,31.71208709]
[1732502714565,5.54080309,250.68,250.58,31.71208709]
[1732502715955,22.6721,250.71,250.58,31.71208709]
[1732502715956,5.54080309,250.66,250.58,31.71208709]
[1732502717278,5.54080309,250.68,250.58,31.71208709]
[1732502718072,5.54080309,250.68,250.6,31.71188709]
[1732502718875,5.54080309,250.68,250.6,26.171084]
[1732502719258,22.6721,250.71,250.6,20.0]
[1732502719460,5.54080309,250.64,250.6,20.0]
[1732502720159,5.54080309,250.64,250.58,22.3943]
[1732502720683,5.54080309,250.64,250.59,23.776884]
[1732502721177,22.6721,250.71,250.59,29.91606061]
[1732502721386,5.54080309,250.69,250.61,23.776884]
[1732502721581,22.16321236,250.77,250.61,23.776884]
[1732502721582,45.10131236,250.77,250.61,23.776884]
[1732502721884,5.54080309,250.71,250.63,23.776884]
[1732502722767,5.54080309,250.71,250.65,23.776884]
[1732502722965,5.54080309,250.69,250.65,23.776884]
[1732502723363,5.54080309,250.69,250.63,43.776884]
[1732502724368,5.54080309,250.69,250.63,46.170784]
[1732502724681,5.54080309,250.71,250.63,46.170784]
[1732502726078,5.54080309,250.69,250.63,46.170784]
[1732502726878,45.10131236,250.77,250.63,45.170784]
[1732502726879,5.54080309,250.67,250.63,45.170784]
[1732502727561,5.54080309,250.65,250.58,6.078767]
[1732502727761,5.54080309,250.63,250.58,2.3944]
[1732502728666,5.54080309,250.63,250.56,2.3946]
[1732502728880,5.54080309,250.63,250.57,20.0]
[1732502729068,5.54080309,250.63,250.56,2.3946]
[1732502729758,5.54080309,250.61,250.54,2.3947]
[1732502730380,5.54080309,250.59,250.57,23.776884]
[1732502730578,5.54080309,250.59,250.55,23.776884]
[1732502732081,5.54080309,250.59,250.55,26.171584]
[1732502732288,5.54080309,250.59,250.55,23.776884]
[1732502732593,5.54080309,250.59,250.53,20.0]
[1732502733593,5.54080309,250.59,250.54,23.776884]
[1732502734504,5.54080309,250.57,250.54,23.776884]
[1732502735183,5.54080309,250.57,250.52,23.776884]
[1732502737495,22.16321236,250.64,250.5,23.776884]
[1732502737496,5.54080309,250.55,250.5,23.776884]
[1732502737676,5.54080309,250.55,250.49,6.078767]
[1732502738069,5.54080309,250.53,250.49,6.078767]
[1732502738270,5.54080309,250.53,250.48,8.474067]
[1732502738575,5.54080309,250.53,250.49,6.078767]
[1732502739082,5.54080309,250.53,250.49,23.776884]
[1732502739982,5.54080309,250.51,250.48,6.078767]
[1732502740166,5.54080309,250.51,250.47,6.078767]
[1732502741384,5.54080309,250.49,250.45,6.078767]
[1732502742396,5.54080309,250.49,250.44,6.078767]
[1732502742593,5.54080309,250.49,250.45,23.776884]
[1732502743186,5.54080309,250.49,250.45,29.855651]
[1732502743377,5.54080309,250.51,250.45,23.776884]
[1732502743701,5.54080309,250.51,250.45,29.855651]
[1732502745298,5.54080309,250.52,250.47,23.776884]
[1732502745492,6.6368,250.58,250.47,29.31768709]
[1732502745676,5.54080309,250.55,250.47,29.31768709]
[1732502746076,6.6368,250.58,250.49,5.54080309]
[1732502746274,5.54080309,250.58,250.52,23.776884]
[1732502746469,5.54080309,250.62,250.54,23.776884]
[1732502747199,5.54080309,250.62,250.56,23.776884]
[1732502748067,5.54080309,250.62,250.53,5.54080309]
[1732502748068,5.54080309,250.6,250.54,23.776884]
[1732502748507,5.54080309,250.6,250.53,23.776884]
[1732502748876,5.54080309,250.58,250.52,23.776884]
[1732502749989,5.54080309,250.58,250.52,26.171784]
[1732502755302,15.4357,250.57,250.52,23.776884]
[1732502758505,5.54080309,250.56,250.5,8.53221868]
[1732502760108,15.4357,250.57,250.51,23.776884]
[1732502760501,15.4357,250.57,250.51,26.171984]
[1732502760699,15.4357,250.57,250.51,32.30900268]
[1732502762995,5.54080309,250.56,250.51,32.30900268]
[1732502763213,5.54080309,250.56,250.51,26.171984]
[1732502764119,5.54080309,250.56,250.51,23.776884]
[1732502764303,5.54080309,250.54,250.51,23.776884]
[1732502764517,5.54080309,250.54,250.5,23.776884]
[1732502765620,5.54080309,250.56,250.5,32.30910268]
[1732502766194,15.4357,250.57,250.5,32.30910268]
[1732502766402,20.97650309,250.57,250.5,32.30910268]
[1732502767003,15.4357,250.57,250.52,26.171884]
[1732502768689,5.54080309,250.59,250.52,26.171884]
[1732502770613,5.54080309,250.59,250.52,32.30890268]
[1732502770817,5.54080309,250.59,250.52,26.171884]
[1732502771615,5.54080309,250.59,250.52,32.30890268]
[1732502773516,5.54080309,250.59,250.52,29.91390268]
[1732502773710,5.54080309,250.57,250.52,29.91390268]
[1732502773910,5.54080309,250.57,250.52,23.776884]
[1732502774109,5.54080309,250.57,250.51,23.776884]
[1732502774815,5.54080309,250.57,250.51,29.91390268]
[1732502775699,5.54080309,250.57,250.51,23.776884]
[1732502775897,5.54080309,250.59,250.51,32.30900268]
[1732502776113,5.54080309,250.59,250.52,6.13701868]
[1732502776503,5.54080309,250.59,250.53,6.13701868]
[1732502776818,5.54080309,250.59,250.54,23.776884]
[1732502777404,5.54080309,250.59,250.54,29.91390268]
[1732502778516,5.54080309,250.59,250.56,23.776884]
[1732502779424,15.12,250.63,250.56,23.776884]
[1732502779425,5.54080309,250.57,250.56,23.776884]
[1732502780610,5.54080309,250.57,250.55,23.776884]
[1732502780813,5.54080309,250.56,250.55,23.776884]
[1732502781122,5.54080309,250.56,250.54,23.776884]
[1732502781825,5.54080309,250.56,250.53,23.776884]